fUST/lending_fUST_20260216
["ID","MTS","AMOUNT","RATE_DAILY","PERIOD"]
[405551867,1771196970116,-60.70390796,0.00015835,2]
[405551868,1771196970142,-235.98831114,0.00015846,2]
[405551869,1771196970178,-1200.0,0.00016054,2]
[405551870,1771196970200,-300.0,0.00016146,2]
[405551871,1771196970224,-180.0,0.00016147,2]
[405551872,1771196970249,-500.0,0.00016147,2]
[405551873,1771196970276,-500.0,0.00016147,2]
[405551874,1771196970302,-242.59195281,0.00016147,2]
[405551875,1771196970325,-406.15532812,0.00016147,2]
[405551876,1771196970348,-45735.5880341,0.00016147,2]
[405551877,1771196970372,-2000.0,0.00016148,2]
[405551878,1771196970395,-2000.0,0.00016148,2]
[405551879,1771196970419,-2000.0,0.00016148,2]
[405551880,1771196970444,-2000.0,0.00016148,2]
[405551881,1771196970467,-2000.0,0.00016148,2]
[405551882,1771196970490,-2000.0,0.00016148,2]
[405551883,1771196970513,-2000.0,0.00016148,2]
[405551884,1771196970536,-1399.24835055,0.00016148,2]
[405551893,1771197031686,-500.0,0.00016144,2]
[405551894,1771197031697,-469.69337906,0.00016144,2]
[405551897,1771197031709,-110.264431,0.00016144,2]
[405551898,1771197031720,-541.69970528,0.00016144,2]
[405551902,1771197031748,-564.78544263,0.00016144,2]
[405551903,1771197031760,-893.51485209,0.00016144,2]
[405551906,1771197031771,-69.38998533,0.00016144,2]
[405551911,1771197031816,-1252.83565313,0.00016144,2]
[405552461,1771197043218,-65.36623245,0.00015983,2]
[405554328,1771197063980,500.0,0.00013699,2]
[405554333,1771197064016,173.18089913,0.00014247,2]
[405554755,1771197068411,408.55432392,0.00013699,2]
[405567235,1771197363725,500.0,0.00013699,2]
[405567236,1771197424251,4294.19961763,0.000156,2]
[405567240,1771197604527,152.26,0.00014,2]
[405567241,1771197605090,152.26,0.00014,2]
[405567242,1771197605644,152.26,0.00014,2]
[405567243,1771197606199,152.26,0.000141,2]
[405567244,1771197606628,152.26,0.000141,2]
[405567245,1771197607173,152.26,0.000141,2]
[405567246,1771197607744,152.26,0.000141,2]
[405567247,1771197613868,152.26,0.000142,2]
[405567248,1771197614385,152.26,0.000142,2]
[405567249,1771197614803,152.26,0.000142,2]
[405567250,1771197618999,152.26,0.000142,2]
[405567251,1771197622908,152.26,0.000143,2]
[405567252,1771197623407,152.26,0.000143,2]
[405567253,1771197623881,152.26,0.000143,2]
[405567254,1771197624450,152.26,0.000143,2]
[405567255,1771197625012,152.26,0.000144,2]
[405567256,1771197625586,152.26,0.000144,2]
[405567257,1771197626044,152.26,0.000144,2]
[405567258,1771197626503,152.26,0.000144,2]
[405567259,1771197626955,152.26,0.000145,2]
[405567260,1771197627670,152.26,0.000145,2]
[405567261,1771197627964,152.26,0.000145,2]
[405567262,1771197628517,152.26,0.000145,2]
[405567263,1771197628948,152.26,0.000145,2]
[405567264,1771197629411,152.26,0.000146,2]
[405567265,1771197629970,152.26,0.000146,2]
[405567266,1771197630430,152.26,0.000146,2]
[405567267,1771197630972,152.26,0.000146,2]
[405567268,1771197631690,152.26,0.000147,2]
[405567269,1771197632138,152.26,0.000147,2]
[405567270,1771197632766,152.26,0.000147,2]
[405567271,1771197633229,152.26,0.000147,2]
[405567272,1771197633685,152.26,0.000148,2]
[405567273,1771197634318,152.26,0.000148,2]
[405567274,1771197634867,152.26,0.000148,2]
[405567275,1771197635335,152.26,0.000148,2]
[405567276,1771197635888,152.26,0.000149,2]
[405567277,1771197636939,152.26,0.000149,2]
[405567278,1771197637403,152.26,0.000149,2]
[405567279,1771197637965,152.26,0.000149,2]
[405567280,1771197638464,152.26,0.00015,2]
[405567281,1771197638944,152.26,0.00015,2]
[405567283,1771197639500,152.26,0.00015,2]
[405567284,1771197680551,488.50905514,0.00013699,2]
[405567297,1771197910941,1089.903656,0.00015357,2]
[405567318,1771198032015,-1189.47445502,0.000159,2]
[405567323,1771198088432,159.350292,0.00015351,2]
[405567324,1771198151082,-10.52554498,0.000159,2]
[405567325,1771198151105,-235.56938469,0.00015931,2]
[405567326,1771198151126,-239.52478917,0.00015962,2]
[405567327,1771198168126,-411.47521083,0.00015962,2]
[405567328,1771198168147,-300.0,0.00016039,2]
[405567329,1771198168167,-129.76414733,0.00016039,2]
[405567330,1771198174814,204.67018503,0.00015324,2]
[405567454,1771198237992,-726.41897084,0.00016043,2]
[405567604,1771198240252,-287.49567619,0.00016043,2]
[405567681,1771198267851,300.0,0.00015353,2]
[405567684,1771198299930,-500.0,0.00016143,2]
[405567685,1771198299969,-233.857997,0.00016149,2]
[405567686,1771198300007,-286.75386131,0.00016155,2]
[405567687,1771198300023,-13.24613869,0.00016155,2]
[405567688,1771198300035,-180.0,0.00016156,2]
[405567689,1771198300048,-184.0,0.00016156,2]
[405567690,1771198300061,-122.75386131,0.00016156,2]
[405567691,1771198300076,-177.24613869,0.00016156,2]
[405567692,1771198300088,-56.61185831,0.00016156,2]
[405567693,1771198300102,-300.0,0.00016156,2]
[405567695,1771198325595,630.9297503,0.00015522,2]
[405567705,1771198529763,326.78013083,0.00013699,2]
[405567706,1771198535881,7379.2979936,0.00015402,2]
[405567716,1771198549094,1000.0,0.00015446,2]
[405567732,1771198703362,2054.46985531,0.000156,2]
[405567734,1771198779364,404.87738549,0.0001534,2]
[405567735,1771198781343,500.0,0.000156,14]
[405567741,1771198923352,573.49830369,0.00013699,2]
[405567745,1771198973040,543.45612696,0.00015324,2]
[405567746,1771198975829,153.42530707,0.0001534,2]
[405567747,1771198978550,175.34320808,0.0001534,2]
[405567748,1771198981653,273.97376263,0.0001534,2]
[405567749,1771198985037,394.12769596,0.0001534,2]
[405567762,1771199292881,358.92602919,0.0001534,2]
[405567763,1771199295980,150.30047178,0.00015104,2]
[405567766,1771199352150,-359.9944987,0.00015894,6]
[405567793,1771199431963,-748.06744344,0.00015894,6]
[405567848,1771199438163,-1831.70254986,0.00015894,6]
[405567850,1771199438173,-229.18083706,0.00015894,2]
[405567851,1771199438187,-500.0,0.00016,14]
[405567853,1771199438197,-1200.0,0.00016045,2]
[405567855,1771199438208,-300.0,0.00016046,2]
[405567857,1771199438218,-300.0,0.00016046,2]
[405567859,1771199438229,-300.0,0.00016046,2]
[405567861,1771199438240,-300.0,0.00016046,2]
[405567863,1771199438250,-3182.82227811,0.00016047,2]
[405567865,1771199438263,-584.08,0.00016047,2]
[405567967,1771199440580,-344.15773379,0.00016047,2]
[405568204,1771199446004,-17.16815017,0.00016047,2]
[405568208,1771199465215,500.0,0.00013699,2]
[405568209,1771199469285,504.16015364,0.00013273,2]
[405568210,1771199481284,192.99640407,0.0001534,2]
[405568211,1771199489060,178.93917001,0.00013699,2]
[405568223,1771199709590,501.45494027,0.00013699,2]
[405568224,1771199710090,1245.13,0.000156,2]
[405568225,1771199710889,170.64794019,0.00015317,2]
[405568226,1771199765771,500.0,0.00013699,2]
[405568227,1771199768437,500.0,0.00013273,2]
[405568231,1771199832253,245.4510051,0.00015266,2]
[405568309,1771200387611,183.1493365,0.00015337,2]
[405568311,1771200390333,329.6688057,0.00015337,2]
[405568312,1771200393231,586.07787679,0.00015337,2]
[405568314,1771200396749,915.74668249,0.00015337,2]
[405568315,1771200399767,1318.67522279,0.00015337,2]
[405568316,1771200402361,1793.06863418,0.00015337,2]
[405568321,1771200445098,-300.0,0.00015999,2]
[405568322,1771200445118,-349.50000001,0.00016,2]
[405568323,1771200445138,-2.40342725,0.00016,6]
[405568410,1771200551094,-787.22994355,0.000159,2]
[405568463,1771200617603,190.874309,0.00012098,2]
[405568477,1771200632099,-239.80083706,0.0001595,2]
[405568479,1771200632110,-300.0,0.00015999,2]
[405568481,1771200632119,-1829.2991226,0.00016,6]
[405568482,1771200632129,-1200.0,0.0001604,2]
[405568484,1771200632139,-300.0,0.00016041,2]
[405568485,1771200632150,-300.0,0.00016041,2]
[405568486,1771200632160,-300.0,0.00016041,2]
[405568487,1771200632170,-300.0,0.00016041,2]
[405568488,1771200632179,-3078.0420147,0.00016047,2]
[405568489,1771200632191,-480.43172694,0.00016047,2]
[405568544,1771200638472,-4235.3872518,0.00016047,2]
[405568546,1771200638483,-873.97005737,0.00016087,2]
[405568762,1771200640813,-462.6378106,0.00016087,2]
[405568876,1771200646338,-222.34750953,0.00016087,2]
[405568877,1771200646348,-151.0,0.00016128,2]
[405568878,1771200646359,-151.0,0.00016128,2]
[405568879,1771200646370,-641.22879203,0.00016128,2]
[405568891,1771200668066,500.0,0.00013273,2]
[405568892,1771200668134,1007.77467851,0.00013821,2]
[405568893,1771200680234,500.0,0.00013273,2]
[405568894,1771200680304,1000.0,0.00013821,2]
[405568895,1771200680363,1500.0,0.00014368,2]
[405568896,1771200680415,554.32195912,0.00014916,2]
[405568897,1771200681228,500.0,0.00013273,2]
[405568898,1771200681281,1000.0,0.00013821,2]
[405568899,1771200681445,1500.0,0.00014368,2]
[405568900,1771200681488,1063.74894825,0.00014916,2]
[405568901,1771200683544,197.13397689,0.00013273,2]
[405568902,1771200684935,500.0,0.00013699,2]
[405568903,1771200684984,1000.0,0.00014247,2]
[405568904,1771200685038,1500.0,0.00014795,2]
[405568905,1771200685094,2000.0,0.00015342,2]
[405568906,1771200685618,649.21380901,0.00013273,2]
[405568907,1771200689830,300.0,0.00013673,2]
[405568908,1771200689877,600.0,0.00014221,2]
[405568909,1771200689927,185.41803946,0.00014768,2]
[405568922,1771200723659,500.0,0.00013273,2]
[405568923,1771200726642,500.0,0.00013273,2]
[405568924,1771200726700,1000.0,0.00013821,2]
[405568925,1771200726751,1500.0,0.00014368,2]
[405568926,1771200726803,2000.0,0.00014916,2]
[405568927,1771200726857,2500.0,0.00015464,2]
[405568928,1771200729279,164.45916391,0.00013973,2]
[405568929,1771200730183,1004.58320597,0.00013821,2]
[405568930,1771200730217,272.45255091,0.00013699,2]
[405568931,1771200732142,545.33291184,0.00013699,2]
[405568932,1771200732248,500.0,0.00013699,2]
[405568933,1771200732284,1001.11418261,0.00014247,2]
[405568934,1771200774716,19621.9593049,0.00015085,2]
[405568940,1771200833713,626.951406,0.00015075,2]
[405568948,1771200912532,500.0,0.00013699,2]
[405568949,1771200912592,428.88786735,0.00014247,2]
[405568950,1771200915830,500.0,0.00013699,2]
[405568951,1771200915887,505.53620751,0.00014247,2]
[405568970,1771200960975,3153.2663922,0.00015,2]
[405568975,1771200965800,159.21608189,0.00013699,2]
[405568976,1771200965989,500.0,0.00013273,2]
[405568977,1771200966047,1000.0,0.00013821,2]
[405568978,1771200966097,919.23591432,0.00014368,2]
[405568985,1771201025164,500.0,0.00013273,2]
[405568986,1771201025197,1000.0,0.00013821,2]
[405568987,1771201025244,1000.0,0.00014368,2]
[405569024,1771201214387,1000.0,0.00015112,2]
[405569146,1771201572253,159.350292,0.00015068,2]
[405569160,1771201604000,177.61613888,0.00015245,2]
[405569172,1771201607090,319.38934093,0.00015245,2]
[405569175,1771201644698,-467.04876216,0.00015736,2]
[405569182,1771201751093,-649.0,0.00015836,2]
[405569183,1771201751116,-27.71503408,0.00015836,2]
[405569391,1771201840929,-173.22510851,0.00015736,2]
[405569393,1771201840940,-648.0,0.00015736,2]
[405569395,1771201840949,-41.76421317,0.00015786,2]
[405569593,1771201846519,-195.68630647,0.00015786,2]
[405569594,1771201846529,-5051.0,0.00015837,7]
[405569595,1771201846538,-1200.0,0.00016029,2]
[405569596,1771201846551,-222.70572493,0.0001603,2]
[405569597,1771201846561,-300.0,0.0001603,2]
[405569598,1771201846571,-287.0,0.0001603,2]
[405569599,1771201846580,-300.0,0.0001603,2]
[405569600,1771201846589,-500.0,0.0001603,2]
[405569601,1771201846598,-242.59195281,0.0001603,2]
[405569602,1771201846608,-500.0,0.0001603,2]
[405569603,1771201846618,-1699.769413,0.00016031,2]
[405569604,1771201846628,-1336.6078679,0.00016031,2]
[405569605,1771201846637,-649.99999996,0.00016053,2]
[405569606,1771201846647,-2000.0,0.00016053,2]
[405569607,1771201846656,-2000.0,0.00016053,2]
[405569608,1771201846666,-2000.0,0.00016053,2]
[405569609,1771201846676,-691.68808407,0.00016053,2]
[405569613,1771201901521,-300.0,0.00016052,2]
[405569616,1771201992097,545.9919934,0.00015166,2]
[405569631,1771202149120,1075.23381708,0.000156,2]
[405569635,1771202324460,202.72092055,0.000156,2]
[405569637,1771202343639,411.30349008,0.00013699,2]
[405569638,1771202348576,300.0,0.00013673,2]
[405569639,1771202348610,600.0,0.00014221,2]
[405569640,1771202348664,900.0,0.00014768,2]
[405569641,1771202348723,1200.0,0.00015316,2]
[405569642,1771202352371,401.70488794,0.00013699,2]
[405569643,1771202353353,167.14541594,0.00013699,2]
[405569644,1771202354180,260.35706272,0.00013699,2]
[405569645,1771202355259,346.55023768,0.00013699,2]
[405569646,1771202356191,500.0,0.00013699,2]
[405569647,1771202358314,238.46971449,0.00014247,2]
[405569648,1771202359036,500.0,0.00013273,2]
[405569649,1771202359091,500.0,0.00013821,2]
[405569651,1771202404973,152.23,0.00014,2]
[405569652,1771202405535,152.23,0.000143,2]
[405569653,1771202406111,152.23,0.000147,2]
[405569654,1771202406933,152.23,0.00015,2]
[405569655,1771202407146,500.0,0.00013273,2]
[405569656,1771202407183,500.0,0.00013699,2]
[405569657,1771202407245,204.09881336,0.00014247,2]
[405569658,1771202407304,1000.0,0.00013821,2]
[405569659,1771202407423,840.67069541,0.00014368,2]
[405569660,1771202407557,228.15093634,0.00013973,2]
[405569661,1771202407599,500.0,0.00013273,2]
[405569662,1771202407642,1000.0,0.00013821,2]
[405569663,1771202407691,1500.0,0.00014368,2]
[405569664,1771202407732,2000.0,0.00014916,2]
[405569665,1771202407770,1991.97398053,0.00015464,2]
[405569666,1771202407836,335.46023785,0.00013273,2]
[405569667,1771202407972,500.0,0.00013273,2]
[405569668,1771202408005,2500.0,0.00015464,2]
[405569669,1771202408043,1000.0,0.00013821,2]
[405569670,1771202408092,1500.0,0.00014368,2]
[405569671,1771202408147,2000.0,0.00014916,2]
[405569672,1771202408859,534.87713295,0.00013273,2]
[405569673,1771202408900,150.0,0.00013673,2]
[405569674,1771202408937,300.0,0.00014221,2]
[405569675,1771202410171,500.0,0.00013699,2]
[405569676,1771202410220,1000.0,0.00014247,2]
[405569677,1771202410274,1500.0,0.00014795,2]
[405569678,1771202410330,1524.60251174,0.00015342,2]
[405569679,1771202410518,500.0,0.00013273,2]
[405569680,1771202410573,1000.0,0.00013821,2]
[405569681,1771202410627,1500.0,0.00014368,2]
[405569682,1771202410690,2000.0,0.00014916,2]
[405569683,1771202410744,2003.7776211,0.00015464,2]
[405569684,1771202411004,500.0,0.00013699,2]
[405569685,1771202411059,500.51974168,0.00014247,2]
[405569686,1771202411241,502.19942786,0.00013699,2]
[405569687,1771202412145,500.0,0.00013699,2]
[405569688,1771202412572,500.0,0.00013273,2]
[405569689,1771202412630,1000.0,0.00013821,2]
[405569690,1771202412664,678.97877802,0.00014368,2]
[405569691,1771202413433,500.0,0.00013699,2]
[405569692,1771202414363,479.2578817,0.00013699,2]
[405569694,1771202416003,501.07637992,0.00013699,2]
[405569695,1771202416632,500.0,0.00013273,2]
[405569696,1771202416671,1000.0,0.00013821,2]
[405569697,1771202416721,1500.0,0.00014368,2]
[405569698,1771202416778,2000.0,0.00014916,2]
[405569699,1771202416837,2500.0,0.00015464,2]
[405569700,1771202417347,500.0,0.00013699,2]
[405569701,1771202419798,243.05473833,0.00013699,2]
[405569702,1771202420904,256.68663128,0.00013273,2]
[405569703,1771202421050,522.00461846,0.00013273,2]
[405569704,1771202421148,500.0,0.00013273,2]
[405569705,1771202421197,1000.0,0.00013821,2]
[405569706,1771202421257,1500.0,0.00014368,2]
[405569707,1771202421310,1029.53294995,0.00014916,2]
[405569710,1771202464456,500.0,0.00013273,2]
[405569711,1771202464525,1500.0,0.00014368,2]
[405569712,1771202464572,764.83849209,0.00014916,2]
[405569713,1771202464626,1000.0,0.00013821,2]
[405569714,1771202464970,500.0,0.00013699,2]
[405569715,1771202465008,501.70470875,0.00014247,2]
[405569716,1771202468345,500.0,0.00013273,2]
[405569717,1771202468391,1000.0,0.00013821,2]
[405569718,1771202468458,1500.0,0.00014368,2]
[405569719,1771202468519,300.05370742,0.00014916,2]
[405569720,1771202468557,300.0,0.00013673,2]
[405569721,1771202468592,300.0,0.00014768,2]
[405569722,1771202468638,600.0,0.00014221,2]
[405569723,1771202469383,500.0,0.00013699,2]
[405569724,1771202506596,2718.31907004,0.000156,2]
[405569726,1771202524646,500.0,0.00013273,2]
[405569727,1771202528047,500.0,0.00013699,2]
[405569728,1771202528250,1000.0,0.00014247,2]
[405569729,1771202528286,1500.0,0.00014795,2]
[405569730,1771202531005,500.0,0.00013273,2]
[405569731,1771202531056,541.5064157,0.00013821,2]
[405569750,1771202707795,300.16313968,0.00013699,2]
[405569751,1771202707849,500.0,0.00013273,2]
[405569752,1771202707925,1503.85478624,0.00014368,2]
[405569753,1771202707967,1000.0,0.00013821,2]
[405569754,1771202708216,500.0,0.00013273,2]
[405569755,1771202708259,1000.0,0.00013821,2]
[405569756,1771202708302,1500.0,0.00014368,2]
[405569757,1771202708345,1938.35979411,0.00015464,2]
[405569758,1771202708407,2000.0,0.00014916,2]
[405569763,1771202763344,500.0,0.00013273,2]
[405569764,1771202763398,409.63130904,0.00013821,2]
[405569765,1771202764129,500.0,0.00013273,2]
[405569767,1771202766672,550.52099427,0.00013273,2]
[405569768,1771202766973,500.0,0.00013273,2]
[405569769,1771202767024,1002.32463045,0.00013821,2]
[405569770,1771202767140,500.0,0.00013699,2]
[405569771,1771202767757,500.0,0.00013699,2]
[405569772,1771202767811,780.55676903,0.00014247,2]
[405569773,1771202767869,150.0,0.00013699,2]
[405569774,1771202767902,250.0,0.00014247,2]
[405569775,1771202767958,228.93136157,0.00014795,2]
[405569776,1771202768318,500.35534999,0.00013699,2]
[405569777,1771202768710,448.42218987,0.00013699,2]
[405569778,1771202769664,500.0,0.00013699,2]
[405569779,1771202769698,413.21960917,0.00014247,2]
[405569780,1771202770662,1000.0,0.00014247,2]
[405569781,1771202770708,500.0,0.00013699,2]
[405569782,1771202770765,1500.0,0.00014795,2]
[405569783,1771202770819,2000.0,0.00015342,2]
[405569785,1771202775966,500.0,0.00013273,2]
[405569786,1771202775999,1000.0,0.00013821,2]
[405569787,1771202776058,1500.0,0.00014368,2]
[405569788,1771202776105,2000.0,0.00014916,2]
[405569789,1771202776159,2500.0,0.00015464,2]
[405569790,1771202783707,500.0,0.00013273,2]
[405569791,1771202783766,1500.0,0.00014368,2]
[405569792,1771202783816,1000.0,0.00013821,2]
[405569793,1771202783869,1604.48003795,0.00014916,2]
[405569794,1771202784863,500.0,0.00013273,2]
[405569900,1771202837001,5000.0,0.000156,2]
[405569922,1771202852569,5000.0,0.000156,2]
[405569923,1771202867480,5000.0,0.000156,2]
[405569931,1771202964138,-648.0,0.00015762,2]
[405569932,1771202964159,-44.03222156,0.00015788,2]
[405569946,1771203007243,500.0,0.00013699,2]
[405569947,1771203007295,1000.0,0.00014247,2]
[405569948,1771203007336,500.0,0.00013273,2]
[405569949,1771203007369,819.20367188,0.00014795,2]
[405569950,1771203007410,636.14603206,0.00013821,2]
[405569952,1771203013761,500.0,0.00013699,2]
[405569953,1771203013818,500.77390481,0.00014247,2]
[405570017,1771203038763,-199.28928769,0.00015788,2]
[405570020,1771203038781,-300.0,0.00015991,2]
[405570022,1771203038790,-300.0,0.00015991,2]
[405570024,1771203038800,-300.0,0.00015991,2]
[405570026,1771203038810,-1200.0,0.00015991,2]
[405570028,1771203038820,-500.0,0.00015992,2]
[405570031,1771203038829,-500.0,0.00015992,2]
[405570032,1771203038839,-180.0,0.00015992,2]
[405570034,1771203038848,-500.0,0.00015992,2]
[405570037,1771203038858,-500.0,0.00015992,2]
[405570039,1771203038867,-500.0,0.00015992,2]
[405570041,1771203038876,-500.0,0.00015992,2]
[405570043,1771203038885,-500.0,0.00015992,2]
[405570045,1771203038895,-500.0,0.00015992,2]
[405570047,1771203038904,-537.25961452,0.00015992,2]
[405570049,1771203038913,-257.50411881,0.00015992,2]
[405570051,1771203038922,-151.0,0.00015993,2]
[405570053,1771203038931,-151.0,0.00015993,2]
[405570055,1771203038940,-250.0,0.00015993,2]
[405570057,1771203038952,-500.0,0.00015993,2]
[405570059,1771203038961,-2000.0,0.00015993,2]
[405570061,1771203038970,-250.0,0.00015993,2]
[405570063,1771203038979,-500.0,0.00015993,2]
[405570065,1771203038989,-290.41906292,0.00015993,2]
[405570067,1771203038998,-500.0,0.00015993,2]
[405570069,1771203039008,-2000.0,0.00015993,2]
[405570071,1771203039017,-174.61919141,0.00015993,2]
[405570073,1771203039027,-250.0,0.00015993,2]
[405570075,1771203039036,-500.0,0.00015993,2]
[405570076,1771203039045,-2000.0,0.00015993,2]
[405570079,1771203039058,-181.08010149,0.00015993,2]
[405570080,1771203039068,-299.06502539,0.00015993,2]
[405570082,1771203039077,-250.0,0.00015993,2]
[405570084,1771203039087,-250.0,0.00015993,2]
[405570086,1771203039096,-250.0,0.00015993,2]
[405570088,1771203039106,-250.0,0.00015993,2]
[405570090,1771203039114,-250.0,0.00015993,2]
[405570092,1771203039124,-250.0,0.00015993,2]
[405570094,1771203039134,-250.0,0.00015993,2]
[405570096,1771203039143,-250.0,0.00015993,2]
[405570098,1771203039153,-250.0,0.00015993,2]
[405570100,1771203039163,-250.0,0.00015993,2]
[405570102,1771203039173,-250.0,0.00015993,2]
[405570104,1771203039182,-250.0,0.00015993,2]
[405570106,1771203039192,-250.0,0.00015993,2]
[405570108,1771203039201,-250.0,0.00015993,2]
[405570110,1771203039210,-500.0,0.00016,2]
[405570112,1771203039220,-3253.2778129,0.00016003,2]
[405570114,1771203039229,-825.04326048,0.00016003,2]
[405570116,1771203039241,-5148.4052096,0.00016003,2]
[405570282,1771203040792,-344.12,0.00016003,2]
[405570284,1771203040804,-10684.17725682,0.00016003,2]
[405570286,1771203040815,-456.85659284,0.00016012,2]
[405570288,1771203040824,-189.45455172,0.00016029,2]
[405570290,1771203040834,-216.51948768,0.00016029,2]
[405570292,1771203040843,-584.08,0.00016053,2]
[405570294,1771203040853,-500.0,0.00016053,2]
[405570296,1771203040863,-306.25094125,0.00016056,2]
[405570298,1771203040871,-338.3116995,0.00016182,2]
[405570300,1771203040881,-179.89206476,0.00016356,2]
[405570302,1771203040890,-257.0,0.00016357,2]
[405570304,1771203040899,-243.81492454,0.00016367,2]
[405570306,1771203040911,-486.68167843,0.00016374,2]
[405570308,1771203040921,-349.65107464,0.00016377,2]
[405570310,1771203040930,-500.0,0.00016438,2]
[405570312,1771203040939,-500.0,0.00016438,2]
[405570314,1771203040949,-500.0,0.00016438,2]
[405570316,1771203040958,-165.53473173,0.00016438,2]
[405570318,1771203040967,-500.0,0.000165,14]
[405570320,1771203040977,-4148.21308881,0.00016535,2]
[405570322,1771203040986,-278.64562804,0.00016566,2]
[405570324,1771203040995,-784.0,0.000166,2]
[405570326,1771203041004,-2933.21652,0.00016688,2]
[405570328,1771203041014,-435.38379382,0.00016765,2]
[405570330,1771203041023,-500.0,0.00016899,2]
[405570333,1771203041032,-225.45,0.00016923,2]
[405570335,1771203041041,-626.32571044,0.00016964,2]
[405570338,1771203041051,-151.0,0.00016986,5]
[405570341,1771203041060,-151.0,0.00016986,2]
[405570343,1771203041070,-151.0,0.00016986,2]
[405570346,1771203041079,-151.0,0.00016986,2]
[405570347,1771203041088,-151.0,0.00016986,2]
[405570348,1771203041098,-151.0,0.00016986,2]
[405570350,1771203041107,-196.996611,0.00016986,2]
[405570352,1771203041117,-500.0,0.00016989,2]
[405570353,1771203041126,-500.0,0.00016989,2]
[405570354,1771203041136,-43411.97065983,0.0001699,2]
[405570355,1771203041145,-6094.33100437,0.00017,2]
[405570356,1771203041155,-500.0,0.00017,14]
[405570357,1771203041164,-500.0,0.00017,2]
[405570358,1771203041174,-500.0,0.0001706,2]
[405570359,1771203041183,-2933.21652,0.0001739,2]
[405570360,1771203041193,-634.0,0.00017414,2]
[405570361,1771203041202,-1725.904,0.00017414,2]
[405570362,1771203041212,-723.0,0.00017414,2]
[405570363,1771203041221,-425.0,0.00017414,2]
[405570364,1771203041230,-431.55,0.00017414,2]
[405570365,1771203041239,-186.383,0.00017414,2]
[405570366,1771203041249,-420.0,0.00017484,2]
[405570367,1771203041259,-420.0,0.00017484,2]
[405570368,1771203041268,-420.0,0.00017484,2]
[405570369,1771203041278,-1207.0,0.00017572,2]
[405570370,1771203041287,-168.0,0.00017583,2]
[405570371,1771203041297,-749.15084384,0.0001763,2]
[405570372,1771203041307,-321.03507965,0.00017685,2]
[405570373,1771203041319,-287.11938091,0.00017788,2]
[405570374,1771203041328,-434.56,0.0001779,3]
[405570375,1771203041338,-310.85,0.0001779,3]
[405570376,1771203041347,-155.42,0.0001779,3]
[405570377,1771203041357,-466.29,0.0001779,3]
[405570378,1771203041366,-500.0,0.00017792,2]
[405570379,1771203041375,-6316.859515,0.00017793,2]
[405570380,1771203041386,-500.0,0.00017799,2]
[405570381,1771203041407,-500.0,0.00017799,2]
[405570382,1771203041416,-500.0,0.00017799,2]
[405570383,1771203041426,-500.0,0.00017799,2]
[405570384,1771203041436,-500.0,0.00017799,2]